bitfinex/quotes_SOLUSD_20240826
["timestamp","ask_amount","ask_price","bid_price","bid_amount"]
[1724695768988,1.58835315,157.44,157.36,51.43107541]
[1724695769323,1.58835315,157.44,157.39,19.76505294]
[1724695769684,21.5884202,157.46,157.34,31.84965165]
[1724695769881,2.28608881,157.48,157.34,31.84965165]
[1724695770112,2.28608881,157.48,157.36,15.8861]
[1724695770494,2.28608881,157.48,157.37,6.3541]
[1724695770807,2.28608881,157.48,157.36,15.8861]
[1724695771382,2.28608881,157.48,157.37,6.3543]
[1724695771911,22.28608881,157.48,157.37,6.3543]
[1724695772109,22.28608881,157.48,157.36,15.8861]
[1724695772309,22.28608881,157.48,157.4,6.353]
[1724695772519,2.28608881,157.48,157.38,6.3537]
[1724695772894,2.28608881,157.48,157.36,15.8861]
[1724695773097,1.58782665,157.47,157.32,15.8909]
[1724695773393,2.28608881,157.48,157.32,15.8909]
[1724695773808,22.28608881,157.48,157.36,6.3545]
[1724695774011,46.57954478,157.47,157.35,6.3551]
[1724695774224,21.5883504,157.46,157.33,6.3557]
[1724695774398,0.8451221,157.46,157.32,15.8909]
[1724695774609,48.1678948,157.47,157.32,15.8909]
[1724695775433,46.57954478,157.47,157.34,6.3553]
[1724695775722,46.57954478,157.47,157.35,15.8873]
[1724695776821,46.57954478,157.44,157.31,15.8916]
[1724695777033,21.58839253,157.43,157.31,15.8916]
[1724695777335,21.58839253,157.43,157.33,6.356]
[1724695777714,21.58839253,157.43,157.31,22.2482]
[1724695777715,1.58835115,157.42,157.31,22.2482]
[1724695777922,1.58860353,157.42,157.29,6.3573]
[1724695778241,46.58860353,157.42,157.27,22.254]
[1724695778744,20.0,157.41,157.25,6.3589]
[1724695778917,45.0,157.4,157.25,6.3589]
[1724695779102,20.0,157.39,157.25,6.3589]
[1724695779301,67.1453,157.38,157.25,6.3589]
[1724695779598,67.1453,157.38,157.23,15.8997]
[1724695779599,9.1204,157.36,157.23,15.8997]
[1724695779825,66.58951467,157.35,157.19,15.9036]
[1724695780041,66.58957592,157.35,157.19,15.9036]
[1724695780218,65.0,157.35,157.19,15.9036]
[1724695780738,65.0,157.35,157.22,6.3604]
[1724695780917,65.0,157.35,157.21,6.3608]
[1724695781112,65.0,157.35,157.19,15.9036]
[1724695781315,66.58980084,157.35,157.19,15.9036]
[1724695781517,66.58980084,157.35,157.15,15.9077]
[1724695781918,6.3603,157.23,157.16,6.3628]
[1724695782116,6.3606,157.22,157.15,22.271]
[1724695782635,6.3606,157.22,157.16,6.3628]
[1724695783222,6.3601,157.23,157.16,6.3628]
[1724695783612,15.8963,157.27,157.15,15.9077]
[1724695783816,6.3609,157.21,157.15,15.9077]
[1724695784017,6.3609,157.21,157.14,6.3636]
[1724695784348,6.3613,157.2,157.13,6.3641]
[1724695784715,8.7562,157.22,157.12,12.92735155]
[1724695784931,6.3618,157.19,157.12,12.92735155]
[1724695785241,6.3618,157.19,157.13,6.364]
[1724695785609,8.7562,157.22,157.13,6.364]
[1724695785809,21.59070174,157.21,157.13,6.364]
[1724695786014,6.3617,157.2,157.13,6.364]
[1724695786214,8.7562,157.22,157.16,6.3628]
[1724695786215,15.1171,157.22,157.16,6.3628]
[1724695787141,15.1171,157.22,157.14,15.9088]
[1724695787142,6.3611,157.21,157.14,15.9088]
[1724695787354,6.3613,157.2,157.14,15.9088]
[1724695787736,6.3619,157.19,157.12,6.56325155]
[1724695788037,6.3612,157.21,157.14,6.3635]
[1724695788223,26.3613,157.2,157.14,6.3635]
[1724695789036,8.7562,157.22,157.13,15.9101]
[1724695789255,20.0,157.21,157.13,15.9101]
[1724695789624,20.0,157.21,157.15,6.3632]
[1724695789818,20.0,157.21,157.16,15.9063]
[1724695790017,20.0,157.21,157.16,22.2692]
[1724695790443,20.0,157.21,157.16,15.9063]
[1724695790654,20.0,157.21,157.04,46.57954478]
[1724695790655,8.4722,157.62,157.4,20.0]
[1724695790961,8.4722,157.62,157.45,31.7557]
[1724695791159,8.4722,157.62,157.55,6.347]
[1724695791465,8.4722,157.62,157.54,6.3474]
[1724695791662,30.0,157.56,157.52,15.8704]
[1724695792156,30.0,157.56,157.54,6.3474]
[1724695792449,30.0,157.56,157.52,15.8704]
[1724695792450,8.4722,157.62,157.55,6.347]
[1724695792634,8.4722,157.62,157.52,15.8704]
[1724695793525,8.4722,157.62,157.52,22.2186]
[1724695793725,14.8168,157.62,157.5,6.3489]
[1724695793945,8.4722,157.62,157.5,6.3489]
[1724695794262,6.3452,157.6,157.51,1.25506851]
[1724695794624,6.3452,157.6,157.5,6.3489]
[1724695794831,20.8200549,157.59,157.5,6.3489]
[1724695795143,27.1657549,157.59,157.5,6.3489]
[1724695796024,6.346,157.58,157.5,6.3489]
[1724695796229,6.3462,157.58,157.49,6.3494]
[1724695797541,6.3464,157.57,157.49,6.3494]
[1724695798128,6.3468,157.56,157.47,15.8751]
[1724695799536,6.3468,157.56,157.49,6.3495]
[1724695801246,6.3468,157.56,157.47,15.8751]
[1724695801447,20.8200549,157.59,157.47,22.2251]
[1724695801647,0.8200549,157.59,157.47,15.8751]
[1724695801956,0.8200549,157.59,157.5,15.8723]
[1724695802158,6.346,157.58,157.5,22.2212]
[1724695802332,0.8200549,157.59,157.5,15.8723]
[1724695802533,6.3468,157.56,157.5,22.2212]
[1724695802736,6.3477,157.54,157.46,46.57954478]
[1724695802963,0.8200549,157.59,157.48,6.35]
[1724695803157,0.8200549,157.59,157.49,6.3495]
[1724695803358,20.8200549,157.59,157.49,6.3495]
[1724695803552,20.8200549,157.59,157.48,15.8747]
[1724695803733,6.3464,157.57,157.51,6.3486]
[1724695803937,6.3464,157.57,157.49,6.3492]
[1724695804762,6.3468,157.56,157.49,6.3492]
[1724695804935,20.0,157.55,157.44,15.8783]
[1724695805139,6.3484,157.52,157.44,22.2296]
[1724695805336,21.13765152,157.59,157.39,47.6498]
[1724695805535,6.3499,157.49,157.42,6.3522]
[1724695805764,0.31759662,157.57,157.4,6.3531]
[1724695805940,6.3508,157.46,157.4,6.3531]
[1724695806145,6.3512,157.45,157.39,22.2371]
[1724695806340,6.3516,157.44,157.39,15.8835]
[1724695806849,15.8761,157.47,157.36,6.3545]
[1724695807054,20.0,157.46,157.37,6.3544]
[1724695807237,20.0,157.46,157.38,3.48955874]
[1724695807563,20.0,157.46,157.36,6.3545]
[1724695807564,6.3525,157.42,157.36,6.3545]
[1724695808167,6.3525,157.42,157.37,1.59070836]
[1724695808769,6.3528,157.41,157.37,1.59070836]
[1724695808947,6.3528,157.41,157.36,1.59070836]
[1724695809136,6.3528,157.41,157.37,4.13588326]
[1724695809342,6.3527,157.42,157.38,1.59070836]
[1724695809542,6.3527,157.42,157.35,28.79459064]
[1724695809759,6.3527,157.42,157.36,4.13608175]
[1724695809956,6.3527,157.42,157.37,1.59080067]
[1724695810167,6.3527,157.42,157.35,28.79459064]
[1724695810562,8.8223,157.7,157.5,20.0]
[1724695810761,0.8200549,157.75,157.41,46.57954478]
[1724695810762,0.8200549,157.75,157.62,15.86]
[1724695810964,0.8200549,157.75,157.63,8.20775388]
[1724695811156,0.8200549,157.75,157.64,4.12906284]
[1724695811362,0.8200549,157.75,157.7,6.341]
[1724695811980,0.8200549,157.75,157.68,15.8541]
[1724695811981,0.8200549,157.75,157.71,6.3404]
[1724695812151,0.8200549,157.75,157.72,17.11771593]
[1724695812357,0.8200549,157.75,157.73,6.3396]
[1724695813069,0.8200549,157.75,157.67,15.8553]
[1724695813293,0.8200549,157.75,157.71,6.3406]
[1724695813764,0.8200549,157.75,157.67,15.8553]
[1724695814170,0.8200549,157.75,157.71,6.3406]
[1724695815074,0.8200549,157.75,157.72,1.26708775]
[1724695815984,0.8200549,157.75,157.73,22.1887]
[1724695816187,0.8200549,157.75,157.74,1.26751175]
[1724695816563,0.8200549,157.75,157.73,22.1887]
[1724695817999,0.8200549,157.75,157.74,1.26638653]
[1724695818370,0.8200549,157.75,157.73,22.1887]
[1724695818771,0.8200549,157.75,157.74,6.3395]
[1724695819473,0.8200549,157.75,157.73,22.1888]
[1724695820301,0.8200549,157.75,157.74,7.60508383]
[1724695821382,0.8200549,157.75,157.74,6.3395]
[1724695821814,0.8200549,157.75,157.74,7.60699606]
[1724695822304,0.8200549,157.75,157.74,6.3395]
[1724695823405,0.8200549,157.75,157.69,15.8533]
[1724695825614,7.1593549,157.75,157.69,15.8533]
[1724695825808,6.3399,157.73,157.67,6.3423]
[1724695828923,0.8200549,157.75,157.66,6.3427]
[1724695829213,0.8200549,157.75,157.65,15.857]
[1724695830883,23.4292,157.74,157.62,15.8608]
[1724695831082,9.187,157.72,157.62,15.8608]
[1724695831287,20.0,157.71,157.62,15.8608]
[1724695831509,20.31759662,157.71,157.6,6.3451]
[1724695831914,20.0,157.71,157.6,6.3451]
[1724695832684,6.3436,157.64,157.58,15.864]
[1724695833113,6.3441,157.63,157.58,15.864]
[1724695833718,6.3444,157.62,157.56,6.3467]
[1724695834012,20.0,157.71,157.57,15.865]
[1724695834317,45.0,157.7,157.57,15.865]
[1724695834519,6.3438,157.64,157.58,6.3456]
[1724695834719,6.344,157.63,157.57,22.2113]
[1724695835018,45.31759662,157.7,157.54,12.87826537]
[1724695835194,20.0,157.69,157.54,6.53096537]
[1724695835402,6.3456,157.59,157.53,22.2172]
[1724695835710,0.31759662,157.67,157.53,15.8696]
[1724695836327,20.31759662,157.67,157.54,1.58931049]
[1724695836506,6.3452,157.6,157.55,1.58931049]
[1724695836703,6.3456,157.59,157.53,22.2175]
[1724695836903,6.3456,157.59,157.54,1.58931318]
[1724695837119,0.31759662,157.65,157.51,6.55535007]
[1724695837285,0.31759662,157.65,157.52,4.13262832]
[1724695837487,0.31759662,157.65,157.53,1.58947243]
[1724695837685,20.31759662,157.65,157.51,22.42655007]
[1724695838002,6.346,157.58,157.52,10.48079039]
[1724695838197,6.346,157.58,157.53,1.58945784]
[1724695838394,6.346,157.58,157.52,6.3482]
[1724695838590,6.3464,157.57,157.53,1.58950863]
[1724695838911,6.3464,157.57,157.51,22.2196]
[1724695839118,9.187,157.58,157.52,1.58955026]
[1724695839315,9.187,157.58,157.53,1.26818359]
[1724695839736,9.187,157.58,157.55,22.2144]
[1724695840382,9.187,157.58,157.55,15.8673]
[1724695840622,9.187,157.58,157.53,6.3478]
[1724695840797,9.187,157.58,157.51,15.8712]
[1724695841196,6.3467,157.57,157.51,15.8712]
[1724695841511,15.533,157.58,157.52,6.3483]
[1724695841713,6.3465,157.57,157.51,22.2199]
[1724695841905,6.3465,157.57,157.51,15.8712]
[1724695842102,9.187,157.58,157.5,8.89204693]
[1724695842297,20.0,157.57,157.49,6.5273748]
[1724695843119,26.3464,157.57,157.51,6.3487]
[1724695844723,20.0,157.57,157.52,15.8703]
[1724695844892,20.0,157.57,157.53,6.3479]
[1724695845713,20.0,157.57,157.52,22.2186]
[1724695846196,9.187,157.58,157.51,6.3487]
[1724695846530,9.187,157.58,157.49,1.18234926]
[1724695846696,20.0,157.57,157.52,6.348]
[1724695847002,20.0,157.57,157.51,22.2206]
[1724695847414,20.0,157.57,157.48,22.40673971]
[1724695847636,20.0,157.57,157.5,6.3491]
[1724695848325,9.187,157.58,157.49,31.7473]
[1724695848535,9.187,157.58,157.55,6.347]
[1724695848825,9.187,157.58,157.54,6.3474]
[1724695849022,9.187,157.58,157.54,7.54192399]
[1724695849224,9.187,157.58,157.54,6.3474]
[1724695849557,9.187,157.58,157.53,22.2174]
[1724695850433,9.187,157.58,157.53,15.8695]
[1724695850647,9.187,157.58,157.54,6.3475]
[1724695851164,9.187,157.58,157.53,22.2174]
[1724695851344,6.3473,157.55,157.49,6.3495]
[1724695851527,6.3465,157.57,157.46,6.53165356]
[1724695851730,6.3476,157.54,157.48,6.3499]
[1724695851953,6.3476,157.54,157.49,7.54314729]
[1724695852148,6.3476,157.54,157.49,6.3495]
[1724695853135,9.50459662,157.58,157.47,15.8757]
[1724695853340,6.3483,157.53,157.47,22.226]
[1724695853647,6.3483,157.53,157.48,6.3499]
[1724695854834,6.3483,157.53,157.48,6.7677167]
[1724695855037,6.3483,157.53,157.47,22.226]
[1724695855228,6.3484,157.52,157.47,15.8757]
[1724695855426,9.50459662,157.58,157.44,15.8789]
[1724695855427,9.187,157.58,157.44,15.8789]
[1724695855624,65.0,157.57,157.44,15.8789]
[1724695856062,65.0,157.57,157.46,6.3507]
[1724695856768,65.0,157.57,157.46,7.620578]
[1724695856935,65.0,157.57,157.46,6.3507]
[1724695858048,65.0,157.57,157.47,7.61999215]
[1724695858633,65.0,157.57,157.47,6.35]
[1724695858890,65.0,157.57,157.46,22.2271]
[1724695859146,6.3487,157.52,157.46,22.2271]
[1724695860135,6.3488,157.51,157.46,22.2271]
[1724695860336,6.3484,157.52,157.46,22.2271]
[1724695860750,6.3488,157.51,157.46,22.2271]
[1724695861065,6.3488,157.51,157.42,6.53283683]
[1724695861066,6.66699662,157.5,157.44,6.3513]
[1724695861369,6.3496,157.49,157.44,6.3513]
[1724695861946,6.3493,157.5,157.44,6.3513]
[1724695866074,22.9812,157.51,157.43,22.2317]
[1724695866263,20.0,157.5,157.43,22.2317]
[1724695866664,20.0,157.5,157.36,31.7732]
[1724695866665,9.4349,157.92,157.7,20.0]
[1724695866855,9.4349,157.92,157.84,6.3352]
[1724695867059,9.4349,157.92,157.85,1.26616527]
[1724695867266,0.18978063,157.98,157.85,1.26616527]
[1724695867267,0.18978063,157.98,157.89,6.3333]
[1724695867471,0.18978063,157.98,157.9,1.26606015]
[1724695867870,0.18978063,157.98,157.9,23.58706706]
[1724695868191,0.18978063,157.98,157.9,1.26606015]
[1724695868487,0.18978063,157.98,157.9,1.26565034]
[1724695868860,0.18978063,157.98,157.89,7.59895034]
[1724695869286,0.18978063,157.98,157.9,11.88486392]
[1724695870187,0.18978063,157.98,157.89,6.3333]
[1724695870393,0.18978063,157.98,157.87,22.1693]
[1724695870770,0.18978063,157.98,157.87,15.8352]
[1724695871087,6.3305,157.97,157.83,6.3357]
[1724695871388,0.18978063,157.98,157.82,15.8403]
[1724695871389,6.3317,157.94,157.82,15.8403]
[1724695871684,7.1528549,157.91,157.77,22.1837]
[1724695871889,7.1528549,157.91,157.72,15.8503]
[1724695871890,10.1775549,157.91,157.72,15.8503]
[1724695872077,65.0,157.9,157.65,20.0]
[1724695872280,6.336,157.83,157.71,6.3405]
[1724695872588,6.3364,157.82,157.69,6.3413]
[1724695872803,6.3368,157.81,157.69,6.3413]
[1724695873401,15.837,157.86,157.67,22.1975]
[1724695873696,65.0,157.85,157.6,6.52450587]
[1724695874899,20.0,157.83,157.6,6.52450587]
[1724695875202,20.0,157.81,157.6,6.52450587]
[1724695875497,65.0,157.8,157.6,6.52450587]
[1724695876301,20.0,157.77,157.57,15.8655]
[1724695876603,88.1031,157.76,157.57,15.8655]
[1724695878401,6.3436,157.64,157.57,15.8655]
[1724695878605,6.3441,157.63,157.56,6.53709645]
[1724695878909,6.3448,157.61,157.53,15.8698]
[1724695879091,6.3448,157.61,157.53,22.423892]
[1724695879683,6.3442,157.63,157.54,6.3474]
[1724695879890,26.3445,157.62,157.54,6.3474]
[1724695881211,8.922,157.97,157.8,20.0]
[1724695881437,19.21142302,158.15,157.8,20.0]
[1724695881438,8.922,158.06,157.85,20.0]
[1724695881633,8.922,158.06,157.89,6.3333]
[1724695881782,6.329,158.01,157.89,6.3333]
[1724695881982,6.3273,158.05,157.89,6.3333]
[1724695882213,8.922,158.06,157.89,6.3333]
[1724695882214,8.922,158.06,157.9,1.26597093]
[1724695882421,6.3288,158.01,157.9,1.26597093]
[1724695882726,8.922,158.06,157.9,1.26597093]
[1724695882888,6.3284,158.02,157.9,1.26597093]
[1724695883091,8.922,158.06,157.9,1.26597093]
[1724695883407,6.3289,158.01,157.9,1.26597093]
[1724695883588,20.0,158.0,157.9,1.26597093]
[1724695883790,6.3289,158.01,157.9,1.26597093]
[1724695884525,6.3292,158.0,157.9,1.26597093]
[1724695885800,6.3296,157.99,157.9,1.26597093]
[1724695886018,6.3296,157.99,157.89,6.3333]
[1724695886334,6.33,157.98,157.89,6.3333]
[1724695890326,8.922,158.06,157.87,15.8356]
[1724695890526,20.0,158.05,157.88,20.0]
[1724695890834,20.0,158.05,157.89,7.59906644]
[1724695891137,6.3292,158.0,157.89,6.3334]
[1724695891304,20.0,157.99,157.89,6.3334]
[1724695891648,26.3296,157.99,157.89,6.3334]
[1724695892212,6.3299,157.98,157.89,6.3334]
[1724695892408,6.3304,157.97,157.89,6.3334]
[1724695892738,8.922,158.06,157.87,15.8356]
[1724695892919,20.0,158.05,157.87,15.8356]
[1724695894041,6.3303,157.97,157.89,6.3334]
[1724695894750,6.3303,157.97,157.9,6.3331]
[1724695895249,20.0,157.96,157.83,15.8396]
[1724695895544,20.0,158.01,157.83,15.8396]
[1724695895846,8.9782,157.9,157.79,15.8431]
[1724695896453,20.0,157.89,157.78,6.3379]
[1724695896641,20.0,157.89,157.77,6.3383]
[1724695896947,20.0,157.89,157.78,1.26696325]
[1724695897117,20.0,157.89,157.81,22.1776]
[1724695897434,20.0,157.89,157.82,1.26664213]
[1724695898239,8.9782,157.9,157.84,15.8382]
[1724695899639,8.9782,157.9,157.86,6.3347]
[1724695900625,8.9782,157.9,157.84,15.8382]
[1724695900818,6.3343,157.87,157.81,6.3367]
[1724695901025,6.3339,157.89,157.82,6.3359]
[1724695901646,8.9782,157.9,157.81,6.3366]
[1724695901821,6.3339,157.88,157.81,6.3366]
[1724695902018,6.3343,157.87,157.81,6.3366]
[1724695902225,6.3352,157.85,157.8,15.842]
[1724695902424,6.3348,157.86,157.8,15.842]
[1724695902721,6.3356,157.84,157.76,47.5382]
[1724695903120,8.9782,157.9,157.76,15.8463]
[1724695903121,6.336,157.83,157.76,15.8463]
[1724695903321,8.9782,157.9,157.69,1.26716039]
[1724695903519,6.3367,157.81,157.75,22.1869]
[1724695903743,6.3363,157.83,157.76,6.3386]
[1724695904120,6.3364,157.82,157.76,6.3386]
[1724695906014,6.3359,157.83,157.77,6.3382]
[1724695906224,8.9782,157.9,157.78,1.26734635]
[1724695906427,6.3341,157.88,157.81,6.3366]
[1724695906637,6.3345,157.87,157.81,7.60369242]
[1724695907922,6.3339,157.88,157.82,7.60321644]
[1724695908278,20.0,158.0,157.82,7.60321644]
[1724695908279,2.4994,158.05,158.0,6.3291]
[1724695908545,2.4994,158.05,157.87,20.0]
[1724695908546,2.4994,158.05,158.01,6.3286]
[1724695908751,2.4994,158.05,157.99,15.8237]
[1724695908752,2.4994,158.05,158.02,7.59372387]
[1724695909241,2.4994,158.05,158.02,17.08592387]
[1724695909417,2.4994,158.05,157.99,6.3291]
[1724695909622,2.4994,158.05,158.01,6.3286]
[1724695910041,2.4994,158.05,157.98,15.824]
[1724695910042,2.4994,158.05,158.0,6.3288]
[1724695910229,2.4994,158.05,157.99,6.3295]
[1724695911418,2.4994,158.05,158.02,6.3282]
[1724695911626,2.4994,158.05,158.02,1.26546396]
[1724695913653,2.4994,158.05,158.01,22.1497]
[1724695914541,2.4994,158.05,158.02,1.26441137]
[1724695915621,2.4994,158.05,158.01,15.8211]
[1724695916442,8.8266,158.05,157.97,15.825]
[1724695916842,8.8266,158.05,157.99,6.3291]
[1724695917637,8.8266,158.05,157.97,15.825]
[1724695917638,2.4994,158.05,157.97,15.825]
[1724695917838,6.3281,158.03,157.97,22.1549]
[1724695918038,6.3275,158.04,157.98,6.3298]
[1724695918241,8.8266,158.05,157.99,6.3293]
[1724695918945,8.8266,158.05,157.99,7.5935884]
[1724695919361,8.8266,158.05,157.99,6.3293]
[1724695920041,2.4994,158.05,157.83,79.344604]
[1724695920249,20.0,158.04,157.92,15.8299]
[1724695920449,20.0,158.04,157.84,8.8352]
[1724695920766,6.3308,157.96,157.91,6.3326]
[1724695921062,6.3308,157.96,157.9,6.333]
[1724695921567,20.0,158.02,157.81,6.61846262]
[1724695921767,8.7685,158.0,157.83,6.3359]
[1724695921940,20.0,157.99,157.83,6.3359]
[1724695922464,20.0,157.99,157.89,6.3331]
[1724695922779,20.0,157.99,157.9,1.26621144]
[1724695923081,8.7685,158.0,157.91,15.8309]
[1724695923251,8.7685,158.0,157.92,1.26600265]
[1724695923451,8.7685,158.0,157.94,6.3311]
[1724695925251,8.7685,158.0,157.89,31.6663]
[1724695925458,8.7685,158.0,157.97,6.3299]
[1724695925769,22.385,158.03,158.0,6.329]
[1724695926346,22.385,158.03,157.99,7.59420262]
[1724695926750,22.385,158.03,157.99,1.26480262]
[1724695926972,22.385,158.03,157.98,15.8239]
[1724695927164,22.385,158.03,158.0,15.8218]
[1724695927470,2.4994,158.05,158.02,6.3283]
[1724695927669,2.4994,158.05,158.03,1.26404847]
[1724695928074,2.4994,158.05,158.03,7.59184847]
[1724695928377,2.4994,158.05,158.04,6.3275]
[1724695928686,2.4994,158.05,158.0,6.3287]
[1724695929354,2.4994,158.05,157.99,15.8228]
[1724695929879,2.4994,158.05,158.01,6.3286]
[1724695930182,2.4994,158.05,157.99,22.1519]
[1724695930384,2.4994,158.05,157.95,15.8268]
[1724695930583,2.4994,158.05,157.96,6.3303]
[1724695930763,2.4994,158.05,157.95,15.8268]
[1724695931162,6.3295,158.0,157.93,6.3315]
[1724695931374,6.3295,158.0,157.94,6.3314]
[1724695931688,6.328,158.03,157.96,6.3303]
[1724695931889,22.4994,158.05,157.96,6.3303]
[1724695931890,6.3285,158.02,157.96,6.3303]
[1724695932389,22.4994,158.05,157.94,22.1594]
[1724695932551,2.4994,158.05,157.94,22.1594]
[1724695933161,6.3303,157.97,157.9,15.8321]
[1724695933363,22.4994,158.05,157.9,15.8321]
[1724695933660,45.0,158.04,157.9,15.8321]
[1724695933886,6.3314,157.95,157.89,6.3331]
[1724695934059,22.2672,157.97,157.87,15.8356]
[1724695934250,22.2672,157.97,157.89,6.3334]
[1724695934453,6.3311,157.95,157.88,6.3335]
[1724695934854,6.3311,157.95,157.89,6.3334]
[1724695935255,22.2672,157.97,157.88,6.3339]
[1724695935756,9.4673,157.96,157.88,6.3339]
[1724695936863,9.4673,157.96,157.87,22.1699]
[1724695937067,9.4673,157.96,157.88,6.3338]
[1724695938298,9.4673,157.96,157.87,22.1698]
[1724695938499,9.4673,157.96,157.85,6.3348]
[1724695938686,20.0,157.95,157.85,6.3348]
[1724695939413,6.3332,157.9,157.85,6.3348]
[1724695939707,6.3332,157.9,157.84,15.8386]
[1724695940376,6.3335,157.89,157.84,22.174]
[1724695940801,6.3335,157.89,157.8,31.685]
[1724695940802,6.3339,157.88,157.82,6.3362]
[1724695940974,6.3344,157.87,157.81,22.1781]
[1724695945187,20.0,157.95,157.79,6.3374]
[1724695945188,6.3351,157.85,157.79,6.3374]
[1724695945392,6.3356,157.84,157.79,6.3374]
[1724695945602,40.0,157.95,157.78,22.1823]
[1724695945813,6.3356,157.84,157.78,22.1823]
[1724695945979,6.335,157.86,157.8,6.337]
[1724695946180,6.3339,157.88,157.82,6.3361]
[1724695946483,6.3344,157.87,157.81,22.178]
[1724695946906,6.3347,157.86,157.81,22.178]
[1724695947113,45.0,157.94,157.78,15.8447]
[1724695947404,6.3363,157.82,157.77,6.3381]
[1724695947616,9.0655,157.92,157.75,15.8474]
[1724695947796,9.0655,157.92,157.75,22.1865]
[1724695947797,106.6392,157.91,157.75,22.1865]
[1724695948114,6.3374,157.8,157.75,15.8474]
[1724695948283,6.338,157.78,157.73,6.3398]
[1724695949209,6.3375,157.79,157.74,6.3393]
[1724695950484,20.0,157.89,157.72,15.8506]
[1724695950684,6.3379,157.78,157.73,6.3397]
[1724695951182,20.0,157.87,157.71,6.3403]
[1724695951387,20.0,157.87,157.69,15.8534]
[1724695951388,74.0655,157.86,157.69,15.8534]
[1724695951619,6.3386,157.77,157.71,6.3405]
[1724695953008,6.3388,157.76,157.7,6.341]
[1724695953203,21.6392,157.78,157.69,15.8534]
[1724695953617,21.6392,157.78,157.72,6.3401]
[1724695953618,6.3384,157.77,157.72,6.3401]
[1724695953796,6.3384,157.77,157.71,6.3406]
[1724695954683,6.3389,157.76,157.7,6.341]
[1724695955713,6.3391,157.75,157.7,6.3411]
[1724695956559,9.0655,157.86,157.74,15.848]
[1724695956828,21.6392,157.9,157.86,6.3346]
[1724695957117,21.6392,157.9,157.88,6.3335]
[1724695957322,21.6392,157.9,157.87,6.3343]
[1724695957519,21.6392,157.9,157.85,15.8368]
[1724695958193,21.6392,157.9,157.86,6.3343]
[1724695958402,21.6392,157.9,157.85,15.8368]
[1724695958602,21.6392,157.9,157.87,6.3343]
[1724695958786,21.6392,157.9,157.86,6.3346]
[1724695958983,21.6392,157.9,157.85,15.8368]
[1724695959494,21.1392,157.9,157.86,6.3346]
[1724695960313,21.1392,157.9,157.86,1.26634984]
[1724695960511,21.1392,157.9,157.88,6.3336]
[1724695960897,21.1392,157.9,157.87,22.1693]
[1724695961290,21.1392,157.9,157.88,6.3335]
[1724695961508,21.1392,157.9,157.87,15.835]
[1724695961814,21.1392,157.9,157.88,6.3338]
[1724695962392,21.1392,157.9,157.87,22.1693]
[1724695962894,9.0655,157.92,157.87,22.1693]
[1724695964326,9.0655,157.92,157.88,6.3338]
[1724695964700,9.0655,157.92,157.87,15.835]
[1724695964907,31.1332,157.98,157.94,6.3314]
[1724695965205,31.1332,157.98,157.88,1.2656635]
[1724695965206,31.1332,157.98,157.87,31.6703]
[1724695965405,6.3308,157.96,157.9,6.333]
[1724695966224,6.3318,157.94,157.87,6.3343]
[1724695966409,6.3318,157.94,157.88,6.3338]
[1724695966616,6.3337,157.89,157.83,15.8397]
[1724695966814,20.0,157.93,157.83,15.8397]
[1724695967114,20.0,157.95,157.83,15.8397]
[1724695967512,20.0,157.97,157.83,15.8397]
[1724695967720,45.0,157.96,157.83,15.8397]
[1724695967936,20.0,157.95,157.83,15.8397]
[1724695968394,6.3336,157.89,157.84,6.3355]
[1724695969727,20.0,157.95,157.85,6.3351]